bitfinex/quotes_SOLUSD_20250326
["timestamp","ask_amount","ask_price","bid_price","bid_amount"]
[1742989807745,0.063,145.15,145.14,96.05804103]
[1742989810029,0.063,145.15,145.14,87.797]
[1742989810478,0.063,145.15,145.14,96.05804103]
[1742989813839,0.063,145.15,145.14,87.797]
[1742989816865,26.97368989,145.15,145.14,81.937]
[1742989819149,18.71264886,145.15,145.14,81.937]
[1742989821408,26.97368989,145.15,145.14,81.937]
[1742989821749,18.64964886,145.14,145.1,96.05804103]
[1742989822465,0.063,145.15,145.12,8.26104103]
[1742989823048,18.64964886,145.14,145.1,87.797]
[1742989823256,18.64964886,145.12,145.1,81.937]
[1742989823475,18.64964886,145.12,145.1,87.797]
[1742989823672,8.26104103,145.14,145.1,87.797]
[1742989824782,26.91068989,145.12,145.1,87.797]
[1742989824972,18.64964886,145.1,145.09,0.03]
[1742989825186,26.91068989,145.1,145.09,0.03]
[1742989826160,18.64964886,145.1,145.09,0.03]
[1742989826888,26.91068989,145.1,145.09,0.03]
[1742989830596,18.64964886,145.1,145.09,0.03]
[1742989830895,26.91068989,145.1,145.09,0.03]
[1742989842015,18.64964886,145.11,145.09,0.03]
[1742989842886,18.64964886,145.11,145.1,5.86]
[1742989843087,8.26104103,145.11,145.1,5.86]
[1742989848323,0.14216157,145.1,145.09,0.03]
[1742989848622,27.05285146,145.1,145.09,0.03]
[1742989855088,18.64964886,145.1,145.09,0.03]
[1742989855521,26.91068989,145.1,145.09,0.03]
[1742989857494,18.64964886,145.1,145.09,0.03]
[1742989860627,18.64964886,145.1,145.09,81.967]
[1742989875021,26.91068989,145.1,145.09,0.03]
[1742989877517,18.64964886,145.1,145.09,0.03]
[1742989883070,26.91068989,145.1,145.09,0.03]
[1742989886457,18.64964886,145.1,145.09,0.03]
[1742989890373,26.91068989,145.1,145.09,0.03]
[1742989902191,18.64964886,145.1,145.09,0.03]
[1742989905962,18.64964886,145.1,145.09,90.22804103]
[1742989907686,18.64964886,145.1,145.09,97.12024103]
[1742989918093,18.64964886,145.1,145.09,97.40456417]
[1742989918387,0.063,145.12,145.11,20.0]
[1742989918569,0.063,145.12,145.11,117.66274103]
[1742989920494,0.063,145.12,145.11,124.55404103]
[1742989933209,0.063,145.15,145.11,141.78234103]
[1742989933388,0.063,145.15,145.14,8.26104103]
[1742989933589,0.063,145.15,145.14,90.19804103]
[1742989935284,0.063,145.15,145.14,97.08784103]
[1742989935899,0.063,145.15,145.14,90.19804103]
[1742989945424,0.063,145.15,145.14,97.08784103]
[1742989945923,0.063,145.15,145.14,90.19804103]
[1742989946103,0.063,145.15,145.14,97.08784103]
[1742989949211,0.063,145.15,145.14,102.94784103]
[1742989988267,0.063,145.18,145.17,20.0]
[1742989988571,18.64964886,145.21,145.17,110.13504103]
[1742989989139,18.64964886,145.26,145.2,8.26104103]
[1742989989341,18.64964886,145.26,145.23,8.26104103]
[1742989989962,18.64964886,145.26,145.23,90.13504103]
[1742989990267,18.64964886,145.26,145.24,8.26104103]
[1742989990454,18.64964886,145.26,145.23,90.13504103]
[1742989993142,8.26104103,145.25,145.23,81.874]
[1742989993343,18.64964886,145.24,145.23,81.874]
[1742989994664,18.64964886,145.24,145.21,81.874]
[1742989995771,1.5791,145.27,145.22,8.26104103]
[1742989995772,18.64964886,145.26,145.22,8.26104103]
[1742989996459,0.03,145.24,145.22,8.26104103]
[1742989997281,0.03,145.24,145.21,90.13504103]
[1742990000480,0.03,145.24,145.22,8.26104103]
[1742990000668,0.14216157,145.21,145.14,81.874]
[1742990000977,8.26104103,145.18,145.14,81.874]
[1742990001145,18.64964886,145.18,145.14,81.874]
[1742990001351,18.64964886,145.18,145.14,90.13504103]
[1742990002675,18.64964886,145.19,145.15,8.26104103]
[1742990003874,26.91068989,145.19,145.14,90.13504103]
[1742990005963,8.26104103,145.18,145.14,87.734]
[1742990006286,8.26104103,145.18,145.14,81.874]
[1742990007867,26.91068989,145.16,145.13,0.063]
[1742990008468,18.64964886,145.14,145.13,0.063]
[1742990009110,18.64964886,145.15,145.13,0.063]
[1742990010574,18.64964886,145.16,145.13,0.063]
[1742990010881,18.64964886,145.16,145.13,8.32404103]
[1742990011193,18.64964886,145.16,145.13,0.063]
[1742990012279,26.91068989,145.16,145.13,0.063]
[1742990014404,8.26104103,145.15,145.13,0.063]
[1742990017207,26.91068989,145.16,145.13,0.063]
[1742990017365,18.64964886,145.16,145.13,0.063]
[1742990027310,26.91068989,145.16,145.13,0.063]
[1742990037601,27.05285146,145.14,145.13,0.063]
[1742990055914,33.94265146,145.14,145.13,0.063]
[1742990056521,20.0,145.11,145.09,0.03]
[1742990056813,47.05285146,145.1,145.09,0.03]
[1742990057723,53.94455146,145.1,145.09,0.03]
[1742990057924,47.05285146,145.1,145.09,0.03]
[1742990058324,55.50015146,145.1,145.09,0.03]
[1742990058541,62.00075146,145.1,145.09,0.03]
[1742990060722,143.70075146,145.1,145.09,0.03]
[1742990062734,95.04491558,145.1,145.0,0.03]
[1742990063039,18.64964886,145.02,145.0,0.03]
[1742990064744,18.64964886,145.03,145.0,0.03]
[1742990067451,18.64964886,145.04,145.0,8.29104103]
[1742990068530,8.26104103,145.04,145.0,0.03]
[1742990071052,18.64964886,145.04,145.0,8.29104103]
[1742990073931,458.64964886,145.04,145.0,8.29104103]
[1742990074133,466.91068989,145.04,145.0,0.03]
[1742990076256,0.14216157,145.03,145.0,0.03]
[1742990076556,18.64964886,145.02,145.0,0.03]
[1742990078558,26.91068989,145.02,145.0,0.03]
[1742990079761,27.05285146,145.03,145.0,0.03]
[1742990084559,18.79181043,145.03,145.0,0.03]
[1742990085160,27.05285146,145.03,145.0,0.03]
[1742990093171,18.64964886,145.01,145.0,0.03]
[1742990094157,8.4032026,145.01,145.0,0.03]
[1742990095674,27.05285146,145.01,145.0,0.03]
[1742990108292,33.94885146,145.01,145.0,0.03]
[1742990108487,115.64885146,145.01,145.0,0.03]
[1742990108691,108.75285146,145.01,145.0,0.03]
[1742990110473,27.05285146,145.01,145.0,0.03]
[1742990112190,18.79181043,145.01,145.0,0.03]
[1742990113278,18.64964886,145.01,145.0,0.03]
[1742990114901,18.64964886,145.01,145.0,8.29104103]
[1742990115693,18.64964886,145.01,145.0,15.18754103]
[1742990116501,18.64964886,145.01,145.0,16.70614103]
[1742990116884,18.64964886,145.01,145.0,98.58014103]
[1742990118403,18.64964886,145.03,145.0,98.58014103]
[1742990118592,18.64964886,145.03,145.02,28.26104103]
[1742990118991,18.64964886,145.03,145.02,35.15664103]
[1742990119703,18.64964886,145.03,145.02,20.0]
[1742990119903,18.64964886,145.03,145.02,8.26104103]
[1742990120087,18.64964886,145.03,145.0,91.68364103]
[1742990121789,18.64964886,145.03,145.02,8.26104103]
[1742990122313,18.64964886,145.03,145.02,28.26104103]
[1742990123813,18.64964886,145.03,145.02,35.15664103]
[1742990125011,18.64964886,145.03,145.02,28.26104103]
[1742990125912,18.64964886,145.03,145.02,41.01664103]
[1742990126111,18.64964886,145.03,145.02,34.12104103]
[1742990131899,18.64964886,145.03,145.02,41.01664103]
[1742990133004,18.64964886,145.03,145.02,34.12104103]
[1742990135637,18.64964886,145.03,145.02,41.01664103]
[1742990136417,18.64964886,145.03,145.02,34.12104103]
[1742990136939,18.64964886,145.03,145.02,5.86]
[1742990139023,0.14216157,145.02,145.0,0.03]
[1742990139331,18.64964886,145.01,145.0,0.03]
[1742990140123,18.79181043,145.02,145.0,0.03]
[1742990141819,8.4032026,145.01,145.0,0.03]
[1742990143621,0.14216157,145.01,145.0,0.03]
[1742990144346,8.4032026,145.01,145.0,0.03]
[1742990148822,15.2992026,145.01,145.0,0.03]
[1742990149231,40.17255146,145.01,145.0,0.03]
[1742990151448,33.27655146,145.01,145.0,0.03]
[1742990153145,18.79181043,145.01,145.0,0.03]
[1742990159047,18.64964886,145.01,145.0,0.03]
[1742990159563,18.64964886,145.01,145.0,8.29104103]
[1742990159722,18.64964886,145.01,145.0,14.15104103]
[1742990160250,18.64964886,145.01,145.0,5.89]
[1742990160550,18.64964886,145.01,145.0,14.15104103]
[1742990161840,18.64964886,145.01,145.0,21.04754103]
[1742990162333,18.64964886,145.01,145.0,14.15104103]
[1742990163340,18.64964886,145.01,145.0,8.29104103]
[1742990164856,18.64964886,145.01,145.0,15.18754103]
[1742990165351,18.64964886,145.01,145.0,8.29104103]
[1742990165748,18.64964886,145.01,145.0,0.03]
[1742990167158,18.64964886,145.01,145.0,8.29104103]
[1742990168257,18.64964886,145.01,145.0,0.03]
[1742990169465,18.64964886,145.01,145.0,15.18754103]
[1742990171363,18.64964886,145.01,145.0,8.29104103]
[1742990172072,18.64964886,145.01,145.0,0.03]
[1742990172363,18.64964886,145.01,145.0,6.9265]
[1742990173064,18.64964886,145.01,145.0,15.18754103]
[1742990176470,18.64964886,145.01,145.0,6.9265]
[1742990178565,18.64964886,145.01,145.0,0.03]
[1742990179470,18.64964886,145.01,145.0,8.29104103]
[1742990179767,18.64964886,145.01,145.0,15.18754103]
[1742990183545,18.64964886,145.01,145.0,0.03]
[1742990185681,18.64964886,145.01,145.0,8.29104103]
[1742990186151,18.64964886,145.01,145.0,0.03]
[1742990191175,18.64964886,145.01,145.0,8.29104103]
[1742990191668,18.64964886,145.01,145.0,15.18754103]
[1742990191975,18.64964886,145.01,145.0,0.03]
[1742990192557,18.64964886,145.01,145.0,8.29104103]
[1742990192760,18.64964886,145.01,145.0,15.18754103]
[1742990193361,440.0,145.04,145.0,15.18754103]
[1742990193362,18.64964886,145.03,145.02,20.0]
[1742990193660,18.64964886,145.03,145.02,41.01664103]
[1742990194678,440.0,145.04,145.02,41.01664103]
[1742990194874,458.64964886,145.04,145.03,8.26104103]
[1742990195174,458.64964886,145.04,145.03,90.13504103]
[1742990196079,458.64964886,145.04,145.03,97.03014103]
[1742990196800,458.64964886,145.04,145.03,90.13504103]
[1742990197167,458.64964886,145.04,145.03,97.03014103]
[1742990197552,440.0,145.04,145.03,97.03014103]
[1742990201800,313.94839289,145.04,145.03,97.31446417]
[1742990202086,223.85219289,145.04,145.03,97.31446417]
[1742990202264,188.25449289,145.04,145.03,97.31446417]
[1742990203364,152.19739289,145.04,145.03,97.31446417]
[1742990203565,82.48999289,145.04,145.03,97.31446417]
[1742990205388,82.48999289,145.04,145.03,97.03014103]
[1742990206768,18.64964886,145.03,145.0,0.03]
[1742990207991,18.64964886,145.03,145.0,5.93]
[1742990210892,18.64964886,145.03,145.0,14.19104103]
[1742990211396,18.64964886,145.03,145.01,8.26104103]
[1742990211585,18.64964886,145.03,145.01,90.13504103]
[1742990213297,18.64964886,145.03,145.01,81.874]
[1742990217302,18.64964886,145.03,145.01,90.13504103]
[1742990220607,18.64964886,145.03,145.01,97.03104103]
[1742990220788,18.64964886,145.03,145.02,8.26104103]
[1742990221302,82.55299289,145.04,145.02,8.26104103]
[1742990221484,101.20264175,145.04,145.03,8.26104103]
[1742990221676,101.20264175,145.04,145.03,90.13504103]
[1742990222383,101.20264175,145.04,145.03,81.874]
[1742990226490,101.20264175,145.04,145.03,88.7691]
[1742990226995,101.20264175,145.04,145.03,81.874]
[1742990228212,101.20264175,145.04,145.03,88.7691]
[1742990229416,101.20264175,145.04,145.03,97.03014103]
[1742990230217,82.55299289,145.04,145.03,97.03014103]
[1742990237596,82.55299289,145.04,145.03,90.13504103]
[1742990238232,82.55299289,145.04,145.03,97.03014103]
[1742990245738,82.55299289,145.04,145.03,97.31446417]
[1742990246410,82.55299289,145.04,145.03,97.34446417]
[1742990251331,0.063,145.09,145.07,20.0]
[1742990251629,0.063,145.09,145.08,21.01374103]
[1742990254611,0.063,145.09,145.08,14.12104103]
[1742990255843,0.063,145.09,145.08,19.58365715]
[1742990256819,0.063,145.09,145.08,11.32261612]
[1742990257318,0.063,145.09,145.08,19.58365715]
[1742990263834,0.063,145.09,145.08,11.32261612]
[1742990264133,0.063,145.09,145.08,5.46261612]
[1742990264731,18.71264886,145.09,145.08,5.46261612]
[1742990265242,28.57598989,145.09,145.06,5.86]
[1742990265423,18.64964886,145.07,145.06,5.86]
[1742990266152,18.64964886,145.08,145.06,5.86]
[1742990267537,18.64964886,145.07,145.06,5.86]
[1742990268046,9.92634103,145.09,145.06,5.86]
[1742990268256,18.64964886,145.08,145.06,5.86]
[1742990270855,9.92634103,145.09,145.06,5.86]
[1742990271047,18.64964886,145.08,145.06,5.86]
[1742990271527,26.91068989,145.08,145.06,5.86]
[1742990271955,26.91068989,145.08,145.04,5.86]
[1742990274357,18.64964886,145.08,145.04,14.12104103]
[1742990276879,18.64964886,145.08,145.05,8.26104103]
[1742990277252,1.6653,145.09,145.05,8.26104103]
[1742990277457,18.64964886,145.08,145.05,8.26104103]
[1742990277861,18.64964886,145.08,145.04,14.12104103]
[1742990279070,18.64964886,145.08,145.04,21.01554103]
[1742990280549,18.64964886,145.08,145.05,8.26104103]
[1742990280950,18.64964886,145.08,145.06,8.26104103]
[1742990281144,0.063,145.09,145.06,8.26104103]
[1742990282463,0.063,145.09,145.07,8.26104103]
[1742990283781,0.063,145.09,145.06,15.15424103]
[1742990284180,0.063,145.09,145.06,8.26104103]
[1742990284355,0.063,145.09,145.06,15.15464103]
[1742990286084,0.063,145.09,145.07,8.26104103]
[1742990286571,0.063,145.09,145.07,15.15404103]
[1742990287191,0.063,145.09,145.06,15.15454103]
[1742990288063,0.063,145.09,145.06,20.61715715]
[1742990288884,0.063,145.09,145.06,13.72365715]
[1742990289291,0.063,145.09,145.06,5.46261612]
[1742990290574,0.063,145.09,145.06,11.32261612]
[1742990290896,26.91068989,145.08,145.06,11.32261612]
[1742990292488,18.64964886,145.08,145.06,11.32261612]
[1742990299301,18.71264886,145.09,145.07,6.8932]
[1742990299984,0.063,145.09,145.07,6.8932]
[1742990300784,0.063,145.09,145.08,8.26104103]
[1742990300996,0.063,145.09,145.07,6.8932]
[1742990301193,0.063,145.09,145.08,8.26104103]
[1742990301374,0.063,145.09,145.08,5.46261612]
[1742990302376,0.063,145.09,145.08,12.35531612]
[1742990302703,0.063,145.09,145.08,5.46261612]
[1742990307303,18.71264886,145.09,145.08,5.46261612]
[1742990309204,18.71264886,145.09,145.08,12.35531612]
[1742990309813,18.71264886,145.09,145.08,5.46261612]
[1742990310390,0.063,145.09,145.08,5.46261612]
[1742990310995,0.063,145.09,145.08,13.72365715]
[1742990311200,0.063,145.09,145.08,5.46261612]
[1742990311378,0.063,145.09,145.08,12.35531612]
[1742990318715,0.063,145.09,145.08,20.61635715]
[1742990319217,0.063,145.09,145.08,12.35531612]
[1742990320118,0.063,145.09,145.08,18.21531612]
[1742990322412,0.063,145.09,145.08,11.32261612]
[1742990322721,0.063,145.09,145.08,5.46261612]
[1742990322896,8.32404103,145.09,145.08,5.46261612]
[1742990323090,26.97368989,145.09,145.07,5.86]
[1742990324920,26.97368989,145.09,145.07,12.7532]
[1742990325121,18.71264886,145.09,145.07,12.7532]
[1742990326191,18.64964886,145.08,145.07,5.86]
[1742990327016,0.063,145.09,145.07,5.86]
[1742990327897,8.32404103,145.09,145.05,6.8939]
[1742990328104,8.26104103,145.08,145.06,5.86]
[1742990328402,8.32404103,145.09,145.06,5.86]
[1742990330317,8.32404103,145.09,145.06,12.7536]
[1742990330512,8.32404103,145.09,145.06,5.86]
[1742990331320,8.26104103,145.08,145.06,5.86]
[1742990331514,8.32404103,145.09,145.06,5.86]
[1742990333229,18.64964886,145.08,145.06,5.86]
[1742990335119,8.26104103,145.08,145.05,12.7541]
[1742990337728,18.64964886,145.06,145.05,12.7541]
[1742990338130,8.26104103,145.06,145.03,0.03]
[1742990338330,26.91068989,145.04,145.03,0.03]
[1742990341368,26.97368989,145.04,145.03,0.03]
[1742990344141,18.71264886,145.04,145.03,0.03]
[1742990344347,0.063,145.04,145.03,0.03]
[1742990345458,18.71264886,145.04,145.03,0.03]
[1742990349378,116.63275146,145.04,145.03,0.03]
[1742990349690,6.4093,144.95,144.94,0.03]
[1742990349866,0.14216157,144.89,144.86,0.03]
[1742990350066,27.05285146,144.89,144.86,0.03]
[1742990352561,18.64964886,144.88,144.85,0.03]
[1742990352759,27.05285146,144.86,144.85,0.03]
[1742990353964,41.22170935,144.86,144.85,0.03]
[1742990354286,18.64964886,144.85,144.79,34.14104103]
[1742990354461,18.64964886,144.82,144.79,25.88]
[1742990354863,18.64964886,144.8,144.77,0.03]
[1742990355067,18.64964886,144.8,144.76,207.04104103]
[1742990355260,21.25860063,144.78,144.77,8.26104103]
[1742990356195,14.16885789,144.78,144.77,8.26104103]
[1742990356560,32.81850675,144.78,144.75,0.03]
[1742990356774,41.07954778,144.78,144.75,0.03]
[1742990357077,32.81850675,144.78,144.75,0.03]
[1742990357487,18.64964886,144.78,144.75,0.03]
[1742990358799,26.91068989,144.78,144.75,0.03]
[1742990359994,29.24876303,144.76,144.75,20.03]
[1742990360295,37.50980406,144.76,144.75,0.03]
[1742990361297,29.24876303,144.76,144.75,0.03]
[1742990361596,44.50742263,144.76,144.75,0.03]
[1742990361793,44.50742263,144.76,144.73,8.26104103]
[1742990362485,18.64964886,144.76,144.73,8.26104103]
[1742990362682,18.64964886,144.75,144.72,90.29104103]
[1742990362872,18.64964886,144.76,144.72,90.29104103]
[1742990364102,18.64964886,144.77,144.73,8.26104103]
[1742990365309,18.64964886,144.77,144.72,97.20074103]
[1742990366104,18.71264886,144.77,144.72,97.20074103]
[1742990367415,26.97368989,144.77,144.72,82.03]
[1742990367711,8.26104103,144.76,144.72,82.03]
[1742990368705,8.26104103,144.76,144.72,88.9398]
[1742990369006,18.64964886,144.76,144.72,97.20084103]
[1742990370120,18.71264886,144.77,144.72,88.9398]
[1742990370608,18.71264886,144.77,144.72,97.20084103]
[1742990370817,0.063,144.77,144.73,8.26104103]
[1742990371314,0.063,144.77,144.74,6.9089]
[1742990372212,0.063,144.77,144.74,15.16994103]
[1742990372414,0.063,144.77,144.76,8.26104103]
[1742990373619,0.063,144.77,144.76,15.16894103]
[1742990374391,0.063,144.77,144.76,21.06894103]
[1742990374788,0.063,144.77,144.76,14.16104103]
[1742990376323,0.063,144.77,144.76,21.06894103]
[1742990382365,0.063,144.77,144.76,12.8079]
[1742990382554,0.063,144.77,144.76,21.06894103]
[1742990383664,0.0001,144.77,144.76,21.06894103]
[1742990387757,0.0001,144.77,144.76,103.06894103]
[1742990392065,0.0001,144.77,144.76,94.8079]
[1742990392273,0.0001,144.77,144.76,103.06894103]
[1742990392847,0.0001,144.77,144.76,94.8079]
[1742990395157,0.0001,144.77,144.76,103.06894103]
[1742990395643,0.0001,144.77,144.76,94.8079]
[1742990400066,0.0001,144.77,144.76,103.06894103]
[1742990400574,18.64964886,144.85,144.79,20.0]
[1742990400780,18.64964886,144.85,144.82,8.26104103]
[1742990400987,18.64964886,144.87,144.83,8.26104103]
[1742990402092,18.64964886,144.85,144.84,6.9041]
[1742990403084,18.64964886,144.85,144.82,6.9051]
[1742990403307,18.64964886,144.86,144.82,6.9051]
[1742990403584,18.64964886,144.87,144.82,6.9051]
[1742990404089,8.26104103,144.86,144.82,6.9051]
[1742990404465,8.4032026,144.85,144.81,12.7853]
[1742990404770,26.91068989,144.82,144.77,25.52964103]
[1742990404972,18.64964886,144.81,144.77,17.2686]
[1742990405275,18.64964886,144.81,144.77,25.52964103]
[1742990406066,18.64964886,144.81,144.78,6.907]
[1742990407187,18.64964886,144.81,144.78,15.16804103]
[1742990408509,18.64964886,144.81,144.77,25.52964103]
[1742990408807,18.64964886,144.81,144.77,32.43714103]
[1742990409106,18.64964886,144.81,144.78,8.26104103]
[1742990410507,18.64964886,144.81,144.79,6.9065]
[1742990411295,18.64964886,144.81,144.78,6.9068]
[1742990412013,26.91068989,144.81,144.78,6.9068]
[1742990412389,26.97368989,144.81,144.78,6.9068]
[1742990412905,18.71264886,144.81,144.78,6.9068]
[1742990413114,18.71264886,144.81,144.78,15.16784103]
[1742990413296,18.71264886,144.81,144.78,32.43534103]
[1742990414392,18.71264886,144.81,144.78,24.1743]
[1742990416207,18.71264886,144.81,144.78,6.9068]
[1742990418344,18.71264886,144.81,144.78,24.1743]
[1742990420488,0.063,144.81,144.78,32.43534103]
[1742990420707,0.063,144.81,144.8,8.26104103]
[1742990421410,18.64964886,144.86,144.8,90.26104103]
[1742990421587,18.64964886,144.86,144.83,8.26104103]
[1742990422338,18.79008912,144.88,144.83,8.26104103]
[1742990422339,18.64964886,144.87,144.84,6.9041]
[1742990422726,18.64964886,144.88,144.84,6.9041]
[1742990423133,7.7064,144.9,144.85,8.26104103]
[1742990423439,10.59204809,144.92,144.88,8.26104103]
[1742990423632,18.64964886,144.91,144.88,8.26104103]
[1742990424009,18.64964886,144.91,144.87,14.14104103]
[1742990424743,18.64964886,144.91,144.88,6.9022]
[1742990425030,18.64964886,144.91,144.88,32.41884103]
[1742990425629,18.71264886,144.92,144.88,32.41884103]
[1742990427140,18.71264886,144.92,144.88,6.9022]
[1742990427342,18.64964886,144.89,144.87,5.88]
[1742990429438,8.26104103,144.91,144.87,5.88]
[1742990429640,18.64964886,144.9,144.87,5.88]
[1742990430845,26.91068989,144.9,144.87,5.88]
[1742990431220,8.26104103,144.89,144.85,5.88]
[1742990431624,26.91068989,144.87,144.83,6.9044]
[1742990432349,18.64964886,144.87,144.83,15.16544103]
[1742990435228,18.64964886,144.87,144.83,6.9044]
[1742990435442,18.64964886,144.87,144.83,15.16544103]
[1742990435749,18.71264886,144.87,144.83,15.16544103]
[1742990436949,18.60911847,144.87,144.83,15.16544103]
[1742990438048,26.8701595,144.87,144.83,6.9044]
[1742990438950,18.60911847,144.87,144.83,15.16544103]
[1742990441746,26.8701595,144.87,144.83,6.9044]
[1742990441945,26.8701595,144.87,144.82,21.04584103]
[1742990442949,26.8701595,144.87,144.82,12.7848]
[1742990443145,8.26104103,144.85,144.81,94.7853]
[1742990444129,8.26104103,144.85,144.81,12.7853]
[1742990445739,18.64964886,144.83,144.81,5.88]
[1742990446143,18.64964886,144.81,144.79,12.7862]
[1742990446458,26.91068989,144.81,144.78,6.9066]
[1742990446647,26.91068989,144.81,144.77,87.91]
[1742990446648,18.64964886,144.79,144.77,0.03]
[1742990447253,8.26104103,144.79,144.77,0.03]
[1742990448258,27.05285146,144.78,144.77,0.03]
[1742990451867,18.64964886,144.78,144.77,0.03]
[1742990453468,18.64964886,144.78,144.77,6.9375]
[1742990453971,18.64964886,144.78,144.77,21.07854103]
[1742990454179,8.26104103,144.83,144.77,38.34724103]
[1742990454362,8.26104103,144.83,144.78,8.26104103]
[1742990454871,13.03306264,144.83,144.78,13.03306264]
[1742990455247,13.03306264,144.82,144.77,125.11926264]
[1742990455463,0.14216157,144.84,144.77,112.0862]
[1742990455464,13.03306264,144.81,144.77,112.0862]
[1742990456261,18.64964886,144.8,144.77,112.0862]
[1742990456860,18.64964886,144.81,144.77,125.11926264]
[1742990457283,13.03306264,144.81,144.77,94.8175]
[1742990457451,13.03306264,144.8,144.77,12.8175]
[1742990457875,13.03306264,144.8,144.77,6.9375]
[1742990458978,13.03306264,144.8,144.77,0.03]
[1742990459180,18.64964886,144.78,144.77,0.03]
[1742990460178,13.03306264,144.78,144.77,0.03]
[1742990461376,13.17522421,144.78,144.77,0.03]
[1742990465469,18.64964886,144.79,144.77,0.03]
[1742990465995,81.7,144.82,144.77,13.06306264]
[1742990465996,18.64964886,144.81,144.77,13.06306264]
[1742990466163,13.17522421,144.83,144.78,13.03306264]
[1742990466358,18.64964886,144.82,144.78,13.03306264]
[1742990466756,18.64964886,144.83,144.79,13.03306264]
[1742990466954,0.14216157,144.85,144.77,5.93]
[1742990466955,13.17522421,144.85,144.8,13.03306264]
[1742990467178,13.17522421,144.85,144.81,6.9056]
[1742990467387,18.64964886,144.84,144.81,6.9056]
[1742990467586,31.6827115,144.84,144.81,6.9056]
[1742990468585,18.64964886,144.84,144.81,37.20266264]
[1742990468775,13.03306264,144.86,144.81,37.20266264]
[1742990470196,13.23822421,144.87,144.82,18.93306264]
[1742990470388,13.03306264,144.85,144.82,5.9]
[1742990470695,31.6827115,144.85,144.82,5.9]
[1742990470877,0.20516157,144.87,144.82,5.9]
[1742990470878,18.64964886,144.83,144.82,5.9]
[1742990471275,13.03306264,144.83,144.81,6.9056]
[1742990471469,13.03306264,144.83,144.79,6.9065]
[1742990471697,18.64964886,144.83,144.79,19.93956264]
[1742990472092,18.64964886,144.82,144.79,6.9065]
[1742990473292,18.64964886,144.82,144.79,19.93956264]
[1742990473491,18.64964886,144.84,144.8,13.03306264]
[1742990473998,18.64964886,144.85,144.81,13.03306264]
[1742990475291,13.03306264,144.85,144.8,13.03306264]
[1742990475686,13.03306264,144.85,144.8,19.93866264]
[1742990476290,13.03306264,144.84,144.8,6.9056]
[1742990476491,18.64964886,144.83,144.8,6.9056]
[1742990476798,31.6827115,144.83,144.8,6.9056]
[1742990476987,18.64964886,144.81,144.78,6.9068]
[1742990477179,18.64964886,144.81,144.77,96.27126092]
[1742990477180,26.99090978,144.81,144.77,88.9374]
[1742990477381,26.99090978,144.78,144.77,0.03]
[1742990478883,31.69379618,144.78,144.77,0.03]
[1742990479301,31.83595775,144.78,144.77,0.03]
[1742990482414,31.89895775,144.78,144.77,0.03]
[1742990486041,18.71264886,144.78,144.77,0.03]
[1742990489319,4.886e-05,144.78,144.77,13.07414732]
[1742990489963,4.886e-05,144.78,144.77,19.98164732]
[1742990493165,4.886e-05,144.78,144.77,101.98164732]
[1742990498965,4.886e-05,144.78,144.77,97.27727529]
[1742990500663,4.886e-05,144.78,144.77,88.9375]
[1742990500844,4.886e-05,144.78,144.77,103.15727529]
[1742990501048,4.886e-05,144.78,144.77,97.27727529]
[1742990515792,4.886e-05,144.78,144.77,88.9375]
[1742990517283,4.886e-05,144.78,144.77,97.27727529]
[1742990532711,4.886e-05,144.78,144.77,103.15727529]
[1742990548232,4.886e-05,144.78,144.77,97.27727529]
[1742990548436,4.886e-05,144.78,144.77,103.13727529]
[1742990550633,4.886e-05,144.78,144.77,88.9375]
[1742990550816,26.98947301,144.78,144.77,0.03]
[1742990553643,27.13163458,144.78,144.77,0.03]
[1742990554936,27.13163458,144.78,144.75,0.03]
[1742990555137,26.98942415,144.76,144.75,0.03]
[1742990556139,27.13158572,144.76,144.75,0.03]
[1742990556342,35.21518572,144.76,144.75,0.03]
[1742990556726,42.12308572,144.76,144.75,0.03]
[1742990556933,42.12308572,144.76,144.72,0.03]
[1742990556934,18.79181043,144.75,144.72,0.03]
[1742990557133,8.48193686,144.73,144.72,0.03]
[1742990557944,27.13158572,144.73,144.72,0.03]
[1742990558935,28.69348572,144.73,144.72,0.03]
[1742990560626,18.79181043,144.72,144.66,6.9427]